fUSD/lending_fUSD_20250204
["ID","MTS","AMOUNT","RATE_DAILY","PERIOD"]
[351634284,1738678256934,-251.72,9.51e-05,2]
[351634285,1738678256944,-500.0,9.51e-05,2]
[351634286,1738678256955,-401.14,9.51e-05,2]
[351634287,1738678256964,-500.0,9.533e-05,2]
[351634288,1738678256974,-397.98519691,9.533e-05,2]
[351634289,1738678256983,-219.30088448,9.533e-05,2]
[351634290,1738678256993,-500.0,9.533e-05,2]
[351634291,1738678257002,-500.0,9.533e-05,2]
[351634292,1738678257012,-150.0,9.534e-05,2]
[351634293,1738678257022,-150.0,9.534e-05,2]
[351634294,1738678257031,-150.0,9.534e-05,2]
[351634295,1738678257041,-150.0,9.534e-05,2]
[351634296,1738678257050,-150.0,9.534e-05,2]
[351634297,1738678257060,-150.0,9.534e-05,2]
[351634298,1738678257069,-150.0,9.534e-05,2]
[351634299,1738678257079,-150.0,9.534e-05,2]
[351634300,1738678257088,-150.0,9.534e-05,2]
[351634301,1738678257097,-150.0,9.534e-05,2]
[351634302,1738678257106,-3911.0,9.562e-05,2]
[351634303,1738678257116,-150.0,9.562e-05,2]
[351634304,1738678257125,-394.36,9.562e-05,2]
[351634305,1738678257135,-600.0,9.6e-05,3]
[351634306,1738678257144,-500.0,9.6e-05,3]
[351634307,1738678257153,-500.0,9.618e-05,2]
[351634308,1738678257163,-500.0,9.618e-05,2]
[351634309,1738678257172,-535.88,9.618e-05,2]
[351634310,1738678257181,-500.0,9.618e-05,2]
[351634311,1738678257191,-840.73,9.618e-05,2]
[351634312,1738678257202,-500.0,9.618e-05,2]
[351634313,1738678257211,-500.0,9.618e-05,2]
[351634314,1738678257220,-500.0,9.618e-05,2]
[351634315,1738678257231,-604.89,9.618e-05,2]
[351634316,1738678257245,-415.757811,9.618e-05,2]
[351634317,1738678257255,-500.0,9.618e-05,2]
[351634318,1738678257265,-500.0,9.618e-05,2]
[351634319,1738678257275,-533.62,9.618e-05,2]
[351634320,1738678257286,-500.0,9.618e-05,2]
[351634321,1738678257296,-441.357191,9.618e-05,2]
[351634322,1738678257306,-500.0,9.618e-05,2]
[351634323,1738678257316,-500.0,9.618e-05,2]
[351634324,1738678257326,-716.77,9.618e-05,2]
[351634325,1738678257336,-500.0,9.618e-05,2]
[351634326,1738678257346,-534.28,9.618e-05,2]
[351634327,1738678257356,-500.0,9.618e-05,2]
[351634328,1738678257366,-883.45,9.618e-05,2]
[351634329,1738678257376,-500.0,9.618e-05,2]
[351634330,1738678257385,-577.07,9.618e-05,2]
[351634331,1738678257395,-772.3,9.618e-05,2]
[351634332,1738678257406,-283.55,9.618e-05,2]
[351634333,1738678257415,-500.0,9.618e-05,2]
[351634334,1738678257425,-510.67,9.618e-05,2]
[351634335,1738678257435,-525.38,9.618e-05,2]
[351634336,1738678257445,-1213.68,9.618e-05,2]
[351634337,1738678257459,-643.49,9.618e-05,2]
[351634338,1738678257468,-889.28,9.618e-05,2]
[351634339,1738678257478,-3141.05,9.618e-05,2]
[351634340,1738678257488,-1039.76,9.618e-05,2]
[351634341,1738678257497,-848.89,9.618e-05,2]
[351634342,1738678257507,-1000.0,9.618e-05,2]
[351634343,1738678257516,-500.0,9.618e-05,2]
[351634344,1738678257527,-500.0,9.618e-05,2]
[351634345,1738678257536,-1510.57,9.618e-05,2]
[351634346,1738678257546,-603.64,9.618e-05,2]
[351634347,1738678257556,-500.0,9.618e-05,2]
[351634348,1738678257565,-347.57,9.618e-05,2]
[351634349,1738678257575,-1294.75,9.618e-05,2]
[351634350,1738678257585,-273.31532711,9.618e-05,2]
[351634351,1738678257594,-500.0,9.618e-05,2]
[351634352,1738678257604,-653.47,9.618e-05,2]
[351634353,1738678257614,-500.0,9.618e-05,2]
[351634354,1738678257623,-1282.24,9.618e-05,2]
[351634355,1738678257632,-640.96,9.618e-05,2]
[351634356,1738678257642,-811.36,9.618e-05,2]
[351634357,1738678257652,-586.57,9.618e-05,2]
[351634358,1738678257662,-622.97,9.618e-05,2]
[351634359,1738678257671,-838.62,9.618e-05,2]
[351634360,1738678257680,-632.17,9.618e-05,2]
[351634361,1738678257690,-697.35,9.618e-05,2]
[351634362,1738678257701,-500.0,9.618e-05,2]
[351634363,1738678257710,-500.0,9.618e-05,2]
[351634364,1738678257720,-649.13,9.618e-05,2]
[351634365,1738678257730,-846.6,9.618e-05,2]
[351634366,1738678257739,-1244.4,9.618e-05,2]
[351634367,1738678257749,-1584.94,9.618e-05,2]
[351634368,1738678257758,-636.76,9.618e-05,2]
[351634369,1738678257768,-929.28,9.618e-05,2]
[351634370,1738678257778,-964.43,9.618e-05,2]
[351634371,1738678257788,-500.0,9.618e-05,2]
[351634372,1738678257798,-1248.54,9.618e-05,2]
[351634373,1738678257808,-680.81,9.618e-05,2]
[351634374,1738678257817,-1821.81,9.618e-05,2]
[351634375,1738678257826,-500.0,9.618e-05,2]
[351634376,1738678257835,-500.0,9.618e-05,2]
[351634377,1738678257845,-500.0,9.618e-05,2]
[351634378,1738678257854,-500.0,9.618e-05,2]
[351634379,1738678257864,-548.58,9.618e-05,2]
[351634380,1738678257873,-500.0,9.618e-05,2]
[351634381,1738678257883,-500.0,9.618e-05,2]
[351634382,1738678257892,-701.96,9.618e-05,2]
[351634383,1738678257901,-500.0,9.618e-05,2]
[351634384,1738678257911,-500.0,9.618e-05,2]
[351634385,1738678257920,-500.0,9.618e-05,2]
[351634386,1738678257930,-1341.61,9.618e-05,2]
[351634387,1738678257940,-500.0,9.618e-05,2]
[351634388,1738678257951,-500.0,9.618e-05,2]
[351634389,1738678257961,-638.0,9.619e-05,2]
[351634390,1738678257970,-568.0,9.619e-05,2]
[351634391,1738678257980,-150.0,9.619e-05,2]
[351634392,1738678257990,-1826.0,9.619e-05,2]
[351634393,1738678258000,-783.0,9.619e-05,2]
[351634394,1738678258009,-2953.0,9.619e-05,2]
[351634395,1738678258020,-907.0,9.619e-05,2]
[351634396,1738678258030,-1264.0,9.619e-05,2]
[351634397,1738678258040,-539.0,9.619e-05,2]
[351634398,1738678258050,-1324.0,9.619e-05,2]
[351634399,1738678258060,-500.0,9.619e-05,2]
[351634400,1738678258070,-500.0,9.619e-05,2]
[351634401,1738678258080,-500.0,9.619e-05,2]
[351634402,1738678258090,-500.0,9.619e-05,2]
[351634403,1738678258100,-505.61535904,9.619e-05,2]
[351634404,1738678258110,-717.16,9.619e-05,2]
[351634405,1738678258120,-631.54,9.619e-05,2]
[351634406,1738678258129,-500.0,9.619e-05,2]
[351634407,1738678258139,-500.0,9.619e-05,2]
[351634408,1738678258150,-500.0,9.619e-05,2]
[351634409,1738678258159,-253.47,9.619e-05,2]
[351634410,1738678258169,-263.88431664,9.619e-05,2]
[351634411,1738678258178,-500.0,9.619e-05,2]
[351634412,1738678258188,-272.63,9.619e-05,2]
[351634413,1738678258199,-331.19134493,9.619e-05,2]
[351634414,1738678258210,-527.45,9.619e-05,2]
[351634415,1738678258220,-364.42,9.619e-05,2]
[351634416,1738678258233,-500.0,9.619e-05,2]
[351634417,1738678258242,-500.0,9.619e-05,2]
[351634418,1738678258252,-265.9,9.619e-05,2]
[351634419,1738678258262,-500.0,9.619e-05,2]
[351634420,1738678258273,-500.0,9.619e-05,2]
[351634421,1738678258283,-463.77018674,9.619e-05,2]
[351634422,1738678258293,-500.0,9.619e-05,2]
[351634423,1738678258303,-500.0,9.619e-05,2]
[351634424,1738678258315,-500.0,9.619e-05,2]
[351634425,1738678258325,-500.0,9.619e-05,2]
[351634426,1738678258335,-500.0,9.619e-05,2]
[351634427,1738678258344,-500.0,9.619e-05,2]
[351634428,1738678258354,-500.0,9.619e-05,2]
[351634429,1738678258364,-2084.88,9.619e-05,2]
[351634430,1738678258374,-622.07,9.619e-05,2]
[351634431,1738678258383,-500.0,9.619e-05,2]
[351634432,1738678258393,-500.0,9.619e-05,2]
[351634433,1738678258403,-500.0,9.619e-05,2]
[351634434,1738678258413,-500.0,9.619e-05,2]
[351634435,1738678258422,-580.18,9.619e-05,2]
[351634436,1738678258432,-500.0,9.619e-05,2]
[351634437,1738678258441,-500.0,9.619e-05,2]
[351634438,1738678258453,-500.0,9.619e-05,2]
[351634439,1738678258463,-500.0,9.619e-05,2]
[351634440,1738678258472,-500.0,9.619e-05,2]
[351634441,1738678258482,-236.97,9.619e-05,2]
[351634442,1738678258491,-500.0,9.619e-05,2]
[351634443,1738678258501,-500.0,9.619e-05,2]
[351634444,1738678258511,-500.0,9.619e-05,2]
[351634445,1738678258521,-500.0,9.619e-05,2]
[351634446,1738678258530,-500.0,9.619e-05,2]
[351634447,1738678258540,-500.0,9.619e-05,2]
[351634448,1738678258551,-500.0,9.619e-05,2]
[351634449,1738678258561,-329.87932674,9.619e-05,2]
[351634450,1738678258571,-500.0,9.619e-05,2]
[351634451,1738678258581,-500.0,9.619e-05,2]
[351634452,1738678258591,-500.0,9.619e-05,2]
[351634453,1738678258602,-500.0,9.619e-05,2]
[351634454,1738678258612,-163.9,9.619e-05,2]
[351634455,1738678258622,-500.0,9.619e-05,2]
[351634456,1738678258632,-500.0,9.619e-05,2]
[351634457,1738678258642,-500.0,9.619e-05,2]
[351634458,1738678258652,-500.0,9.619e-05,2]
[351634459,1738678258663,-500.0,9.619e-05,2]
[351634460,1738678258674,-500.0,9.619e-05,2]
[351634461,1738678258684,-500.0,9.619e-05,2]
[351634462,1738678258694,-537.03601329,9.619e-05,2]
[351634463,1738678258707,-270.67,9.619e-05,2]
[351634464,1738678258716,-500.0,9.619e-05,2]
[351634465,1738678258727,-500.0,9.619e-05,2]
[351634466,1738678258736,-500.0,9.619e-05,2]
[351634467,1738678258746,-500.0,9.619e-05,2]
[351634468,1738678258755,-575.77,9.619e-05,2]
[351634469,1738678258765,-1490.51,9.619e-05,2]
[351634470,1738678258775,-177.4,9.619e-05,2]
[351634471,1738678258784,-164.33,9.619e-05,2]
[351634472,1738678258794,-500.0,9.619e-05,2]
[351634473,1738678258804,-438.49330082,9.619e-05,2]
[351634474,1738678258814,-1229.91,9.619e-05,2]
[351634475,1738678258823,-246.63849765,9.619e-05,2]
[351634476,1738678258833,-500.0,9.619e-05,2]
[351634477,1738678258842,-734.59,9.619e-05,2]
[351634478,1738678258852,-563.19091423,9.619e-05,2]
[351634479,1738678258862,-886.45,9.619e-05,2]
[351634480,1738678258872,-500.0,9.619e-05,2]
[351634481,1738678258881,-500.0,9.619e-05,2]
[351634482,1738678258891,-500.0,9.619e-05,2]
[351634483,1738678258901,-500.0,9.619e-05,2]
[351634484,1738678258911,-500.0,9.619e-05,2]
[351634485,1738678258921,-500.0,9.619e-05,2]
[351634486,1738678258931,-500.0,9.619e-05,2]
[351634487,1738678258940,-618.13913876,9.619e-05,2]
[351634488,1738678258951,-500.0,9.619e-05,2]
[351634489,1738678258961,-500.0,9.619e-05,2]
[351634490,1738678258971,-500.0,9.619e-05,2]
[351634491,1738678258981,-500.0,9.619e-05,2]
[351634492,1738678258991,-500.0,9.619e-05,2]
[351634493,1738678259002,-500.0,9.619e-05,2]
[351634494,1738678259012,-555.23,9.619e-05,2]
[351634495,1738678259022,-500.0,9.619e-05,2]
[351634496,1738678259032,-567.98,9.619e-05,2]
[351634497,1738678259042,-500.0,9.619e-05,2]
[351634498,1738678259052,-500.0,9.619e-05,2]
[351634499,1738678259062,-616.4,9.647e-05,2]
[351634500,1738678259072,-500.0,9.647e-05,2]
[351634501,1738678259081,-500.0,9.647e-05,2]
[351634502,1738678259091,-500.0,9.647e-05,2]
[351634503,1738678259101,-1454.54,9.647e-05,2]
[351634504,1738678259111,-821.86,9.647e-05,2]
[351634505,1738678259120,-500.0,9.647e-05,2]
[351634506,1738678259130,-764.43,9.647e-05,2]
[351634507,1738678259140,-419.09559342,9.647e-05,2]
[351634508,1738678259149,-564.32,9.647e-05,2]
[351634509,1738678259159,-500.0,9.647e-05,2]
[351634510,1738678259168,-500.0,9.647e-05,2]
[351634511,1738678259179,-900.0,9.7e-05,3]
[351634512,1738678259189,-800.0,9.7e-05,3]
[351634513,1738678259200,-526.321,9.751e-05,2]
[351634514,1738678259209,-500.0,9.755e-05,2]
[351634515,1738678259219,-500.0,9.755e-05,2]
[351634516,1738678259228,-535.88,9.755e-05,2]
[351634517,1738678259239,-500.0,9.755e-05,2]
[351634518,1738678259249,-840.73,9.755e-05,2]
[351634519,1738678259259,-500.0,9.755e-05,2]
[351634520,1738678259269,-500.0,9.755e-05,2]
[351634521,1738678259279,-500.0,9.755e-05,2]
[351634522,1738678259289,-604.89,9.755e-05,2]
[351634523,1738678259298,-415.757811,9.755e-05,2]
[351634524,1738678259308,-500.0,9.755e-05,2]
[351634525,1738678259318,-500.0,9.755e-05,2]
[351634526,1738678259328,-500.0,9.755e-05,2]
[351634527,1738678259339,-441.357191,9.755e-05,2]
[351634528,1738678259349,-500.0,9.755e-05,2]
[351634529,1738678259360,-500.0,9.755e-05,2]
[351634530,1738678259370,-716.77,9.755e-05,2]
[351634531,1738678259380,-500.0,9.755e-05,2]
[351634532,1738678259390,-534.28,9.755e-05,2]
[351634533,1738678259400,-500.0,9.755e-05,2]
[351634534,1738678259409,-883.45,9.755e-05,2]
[351634535,1738678259419,-500.0,9.755e-05,2]
[351634536,1738678259429,-577.07,9.755e-05,2]
[351634537,1738678259439,-772.3,9.755e-05,2]
[351634538,1738678259450,-500.0,9.755e-05,2]
[351634539,1738678259460,-510.67,9.755e-05,2]
[351634540,1738678259470,-525.38,9.755e-05,2]
[351634541,1738678259480,-1213.68,9.755e-05,2]
[351634542,1738678259490,-643.49,9.755e-05,2]
[351634543,1738678259639,-889.28,9.755e-05,2]
[351634544,1738678259679,-3141.05,9.755e-05,2]
[351634545,1738678259690,-1039.76,9.755e-05,2]
[351634546,1738678259702,-848.89,9.755e-05,2]
[351634547,1738678259713,-1000.0,9.755e-05,2]
[351634548,1738678259723,-500.0,9.755e-05,2]
[351634549,1738678259733,-500.0,9.755e-05,2]
[351634550,1738678259743,-1510.57,9.755e-05,2]
[351634551,1738678259753,-603.64,9.755e-05,2]
[351634552,1738678259765,-500.0,9.755e-05,2]
[351634553,1738678259775,-1294.75,9.755e-05,2]
[351634554,1738678259785,-653.47,9.755e-05,2]
[351634555,1738678259796,-500.0,9.755e-05,2]
[351634556,1738678259805,-500.0,9.755e-05,2]
[351634557,1738678259815,-1282.24,9.755e-05,2]
[351634558,1738678259825,-640.96,9.755e-05,2]
[351634559,1738678259835,-811.36,9.755e-05,2]
[351634560,1738678259844,-586.57,9.755e-05,2]
[351634561,1738678259853,-622.97,9.755e-05,2]
[351634562,1738678259863,-838.62,9.755e-05,2]
[351634563,1738678259873,-697.35,9.755e-05,2]
[351634564,1738678259883,-632.17,9.755e-05,2]
[351634565,1738678259893,-500.0,9.755e-05,2]
[351634566,1738678259903,-500.0,9.755e-05,2]
[351634567,1738678259913,-649.13,9.755e-05,2]
[351634568,1738678259923,-846.6,9.755e-05,2]
[351634569,1738678259933,-1244.4,9.755e-05,2]
[351634570,1738678259943,-1584.94,9.755e-05,2]
[351634571,1738678259954,-636.76,9.755e-05,2]
[351634572,1738678259964,-929.28,9.755e-05,2]
[351634573,1738678259974,-964.43,9.755e-05,2]
[351634574,1738678259983,-500.0,9.755e-05,2]
[351634575,1738678259992,-1248.54,9.755e-05,2]
[351634576,1738678260003,-680.81,9.755e-05,2]
[351634577,1738678260012,-1821.81,9.755e-05,2]
[351634578,1738678260022,-500.0,9.755e-05,2]
[351634579,1738678260032,-500.0,9.755e-05,2]
[351634580,1738678260042,-500.0,9.755e-05,2]
[351634581,1738678260051,-500.0,9.755e-05,2]
[351634582,1738678260061,-548.58,9.755e-05,2]
[351634583,1738678260071,-500.0,9.755e-05,2]
[351634584,1738678260081,-500.0,9.755e-05,2]
[351634585,1738678260090,-701.96,9.755e-05,2]
[351634586,1738678260099,-500.0,9.755e-05,2]
[351634587,1738678260109,-500.0,9.755e-05,2]
[351634588,1738678260119,-500.0,9.755e-05,2]
[351634589,1738678260129,-1341.61,9.755e-05,2]
[351634590,1738678260138,-500.0,9.755e-05,2]
[351634591,1738678260149,-500.0,9.755e-05,2]
[351634592,1738678260159,-500.0,9.756e-05,2]
[351634593,1738678260168,-500.0,9.756e-05,2]
[351634594,1738678260178,-500.0,9.756e-05,2]
[351634595,1738678260188,-500.0,9.756e-05,2]
[351634596,1738678260199,-717.16,9.756e-05,2]
[351634597,1738678260210,-500.0,9.756e-05,2]
[351634598,1738678260221,-500.0,9.756e-05,2]
[351634599,1738678260234,-500.0,9.756e-05,2]
[351634600,1738678260245,-365.62,9.756e-05,2]
[351634601,1738678260255,-527.45,9.756e-05,2]
[351634602,1738678260265,-500.0,9.756e-05,2]
[351634603,1738678260275,-500.0,9.756e-05,2]
[351634604,1738678260284,-500.0,9.756e-05,2]
[351634605,1738678260294,-500.0,9.756e-05,2]
[351634606,1738678260306,-500.0,9.756e-05,2]
[351634607,1738678260317,-500.0,9.756e-05,2]
[351634608,1738678260327,-395.8,9.756e-05,2]
[351634609,1738678260338,-500.0,9.756e-05,2]
[351634610,1738678260347,-500.0,9.756e-05,2]
[351634611,1738678260357,-500.0,9.756e-05,2]
[351634612,1738678260369,-500.0,9.756e-05,2]
[351634613,1738678260379,-2084.88,9.756e-05,2]
[351634614,1738678260389,-500.0,9.756e-05,2]
[351634615,1738678260400,-500.0,9.756e-05,2]
[351634616,1738678260410,-500.0,9.756e-05,2]
[351634617,1738678260421,-500.0,9.756e-05,2]
[351634618,1738678260431,-331.22,9.756e-05,2]
[351634619,1738678260441,-500.0,9.756e-05,2]
[351634620,1738678260452,-187.23,9.756e-05,2]
[351634621,1738678260462,-500.0,9.756e-05,2]
[351634622,1738678260472,-500.0,9.756e-05,2]
[351634623,1738678260483,-500.0,9.756e-05,2]
[351634624,1738678260494,-413.6,9.756e-05,2]
[351634625,1738678260505,-500.0,9.756e-05,2]
[351634626,1738678260514,-500.0,9.756e-05,2]
[351634627,1738678260524,-500.0,9.756e-05,2]
[351634628,1738678260534,-500.0,9.756e-05,2]
[351634629,1738678260544,-500.0,9.756e-05,2]
[351634630,1738678260555,-500.0,9.756e-05,2]
[351634631,1738678260565,-269.54,9.756e-05,2]
[351634632,1738678260575,-500.0,9.756e-05,2]
[351634633,1738678260585,-500.0,9.756e-05,2]
[351634634,1738678260595,-500.0,9.756e-05,2]
[351634635,1738678260604,-500.0,9.756e-05,2]
[351634636,1738678260613,-500.0,9.756e-05,2]
[351634637,1738678260623,-500.0,9.756e-05,2]
[351634638,1738678260633,-500.0,9.756e-05,2]
[351634639,1738678260643,-500.0,9.756e-05,2]
[351634640,1738678260653,-500.0,9.756e-05,2]
[351634641,1738678260663,-500.0,9.756e-05,2]
[351634642,1738678260673,-500.0,9.756e-05,2]
[351634643,1738678260683,-500.0,9.756e-05,2]
[351634644,1738678260692,-575.77,9.756e-05,2]
[351634645,1738678260704,-1490.51,9.756e-05,2]
[351634646,1738678260714,-500.0,9.756e-05,2]
[351634647,1738678260725,-1229.91,9.756e-05,2]
[351634648,1738678260735,-346.62983873,9.756e-05,2]
[351634649,1738678260746,-734.59,9.756e-05,2]
[351634650,1738678260755,-886.45,9.756e-05,2]
[351634651,1738678260765,-500.0,9.756e-05,2]
[351634652,1738678260775,-500.0,9.756e-05,2]
[351634653,1738678260785,-500.0,9.756e-05,2]
[351634654,1738678260795,-500.0,9.756e-05,2]
[351634655,1738678260804,-500.0,9.756e-05,2]
[351634656,1738678260814,-500.0,9.756e-05,2]
[351634657,1738678260823,-500.0,9.756e-05,2]
[351634658,1738678260833,-500.0,9.756e-05,2]
[351634659,1738678260843,-500.0,9.756e-05,2]
[351634660,1738678260852,-500.0,9.756e-05,2]
[351634661,1738678260862,-500.0,9.756e-05,2]
[351634662,1738678260872,-500.0,9.756e-05,2]
[351634663,1738678260882,-500.0,9.756e-05,2]
[351634664,1738678260891,-555.23,9.756e-05,2]
[351634665,1738678260901,-500.0,9.756e-05,2]
[351634666,1738678260911,-567.98,9.756e-05,2]
[351634667,1738678260920,-213.3,9.756e-05,2]
[351634668,1738678260929,-500.0,9.756e-05,2]
[351634669,1738678260939,-431.43955898,9.768e-05,2]
[351634670,1738678260948,-500.0,9.784e-05,2]
[351634671,1738678260959,-500.0,9.784e-05,2]
[351634672,1738678260970,-1454.54,9.784e-05,2]
[351634673,1738678260980,-821.86,9.784e-05,2]
[351634674,1738678260989,-500.0,9.784e-05,2]
[351634675,1738678260999,-764.43,9.784e-05,2]
[351634676,1738678261009,-500.0,9.784e-05,2]
[351634677,1738678261018,-500.0,9.784e-05,2]
[351634678,1738678261027,-687.9338176,9.8e-05,2]
[351634679,1738678261037,-1200.0,9.8e-05,3]
[351634680,1738678261047,-1100.0,9.8e-05,3]
[351634681,1738678261056,-500.0,9.892e-05,2]
[351634682,1738678261067,-500.0,9.892e-05,2]
[351634683,1738678261076,-500.0,9.892e-05,2]
[351634684,1738678261086,-535.88,9.892e-05,2]
[351634685,1738678261096,-500.0,9.892e-05,2]
[351634686,1738678261105,-840.73,9.892e-05,2]
[351634687,1738678261115,-500.0,9.892e-05,2]
[351634688,1738678261124,-500.0,9.892e-05,2]
[351634689,1738678261134,-500.0,9.892e-05,2]
[351634690,1738678261144,-604.89,9.892e-05,2]
[351634691,1738678261153,-415.757811,9.892e-05,2]
[351634692,1738678261163,-500.0,9.892e-05,2]
[351634693,1738678261173,-500.0,9.892e-05,2]
[351634694,1738678261183,-500.0,9.892e-05,2]
[351634695,1738678261194,-441.357191,9.892e-05,2]
[351634696,1738678261207,-500.0,9.892e-05,2]
[351634697,1738678261217,-500.0,9.892e-05,2]
[351634698,1738678261228,-716.77,9.892e-05,2]
[351634699,1738678261238,-500.0,9.892e-05,2]
[351634700,1738678261251,-534.28,9.892e-05,2]
[351634701,1738678261261,-500.0,9.892e-05,2]
[351634702,1738678261272,-883.45,9.892e-05,2]
[351634703,1738678261283,-500.0,9.892e-05,2]
[351634704,1738678261294,-577.07,9.892e-05,2]
[351634705,1738678261305,-772.3,9.892e-05,2]
[351634706,1738678261315,-500.0,9.892e-05,2]
[351634707,1738678261329,-510.67,9.892e-05,2]
[351634708,1738678261340,-525.38,9.892e-05,2]
[351634709,1738678261350,-1213.68,9.892e-05,2]
[351634710,1738678261360,-643.49,9.892e-05,2]
[351634711,1738678261370,-889.28,9.892e-05,2]
[351634712,1738678261379,-3141.05,9.892e-05,2]
[351634713,1738678261389,-1039.76,9.892e-05,2]
[351634714,1738678261399,-848.89,9.892e-05,2]
[351634715,1738678261409,-1000.0,9.892e-05,2]
[351634716,1738678261419,-500.0,9.892e-05,2]
[351634717,1738678261428,-500.0,9.892e-05,2]
[351634718,1738678261438,-1510.57,9.892e-05,2]
[351634719,1738678261448,-603.64,9.892e-05,2]
[351634720,1738678261460,-500.0,9.892e-05,2]
[351634721,1738678261470,-1294.75,9.892e-05,2]
[351634722,1738678261480,-653.47,9.892e-05,2]
[351634723,1738678261490,-500.0,9.892e-05,2]
[351634724,1738678261500,-500.0,9.892e-05,2]
[351634725,1738678261510,-1282.24,9.892e-05,2]
[351634726,1738678261520,-500.0,9.892e-05,2]
[351634727,1738678261530,-640.96,9.892e-05,2]
[351634728,1738678261540,-811.36,9.892e-05,2]
[351634729,1738678261550,-586.57,9.892e-05,2]
[351634730,1738678261560,-622.97,9.892e-05,2]
[351634731,1738678261570,-838.62,9.892e-05,2]
[351634732,1738678261581,-697.35,9.892e-05,2]
[351634733,1738678261592,-632.17,9.892e-05,2]
[351634734,1738678261602,-500.0,9.892e-05,2]
[351634735,1738678261612,-500.0,9.892e-05,2]
[351634736,1738678261621,-649.13,9.892e-05,2]
[351634737,1738678261631,-846.6,9.892e-05,2]
[351634738,1738678261640,-1244.4,9.892e-05,2]
[351634739,1738678261650,-1584.94,9.892e-05,2]
[351634740,1738678261659,-636.76,9.892e-05,2]
[351634741,1738678261668,-929.28,9.892e-05,2]
[351634742,1738678261678,-964.43,9.892e-05,2]
[351634743,1738678261688,-500.0,9.892e-05,2]
[351634744,1738678261697,-568.32,9.892e-05,2]
[351634745,1738678261709,-1248.54,9.892e-05,2]
[351634746,1738678261718,-680.81,9.892e-05,2]
[351634747,1738678261727,-1821.81,9.892e-05,2]
[351634748,1738678261739,-500.0,9.892e-05,2]
[351634749,1738678261749,-379.37,9.892e-05,2]
[351634750,1738678261759,-338.82,9.892e-05,2]
[351634751,1738678261769,-461.46093208,9.892e-05,2]
[351634752,1738678261779,-548.58,9.892e-05,2]
[351634753,1738678261789,-500.0,9.892e-05,2]
[351634754,1738678261799,-500.0,9.892e-05,2]
[351634755,1738678261808,-701.96,9.892e-05,2]
[351634756,1738678261819,-500.0,9.892e-05,2]
[351634757,1738678261829,-500.0,9.892e-05,2]
[351634758,1738678261839,-500.0,9.892e-05,2]
[351634759,1738678261850,-1341.61,9.892e-05,2]
[351634760,1738678261859,-500.0,9.892e-05,2]
[351634761,1738678261869,-500.0,9.892e-05,2]
[351634762,1738678261878,-500.0,9.893e-05,2]
[351634763,1738678261888,-350.46288127,9.893e-05,2]
[351634764,1738678261898,-527.51688257,9.893e-05,2]
[351634765,1738678261908,-203.3994495,9.893e-05,2]
[351634766,1738678261918,-717.16,9.893e-05,2]
[351634767,1738678261927,-500.0,9.893e-05,2]
[351634768,1738678261938,-500.0,9.893e-05,2]
[351634769,1738678261948,-500.0,9.893e-05,2]
[351634770,1738678261960,-527.45,9.893e-05,2]
[351634771,1738678261971,-500.0,9.893e-05,2]
[351634772,1738678261981,-500.0,9.893e-05,2]
[351634773,1738678261990,-500.0,9.893e-05,2]
[351634774,1738678262000,-500.0,9.893e-05,2]
[351634775,1738678262010,-500.0,9.893e-05,2]
[351634776,1738678262020,-500.0,9.893e-05,2]
[351634777,1738678262030,-500.0,9.893e-05,2]
[351634778,1738678262040,-500.0,9.893e-05,2]
[351634779,1738678262050,-500.0,9.893e-05,2]
[351634780,1738678262060,-2084.88,9.893e-05,2]
[351634781,1738678262070,-500.0,9.893e-05,2]
[351634782,1738678262079,-500.0,9.893e-05,2]
[351634783,1738678262089,-500.0,9.893e-05,2]